bitfinex-derivatives/quotes_SOLF0:USTF0_20250808
["timestamp","ask_amount","ask_price","bid_price","bid_amount"]
[1754666883847,9.0025,175.65,175.64,106.6]
[1754666884042,15.37089803,175.65,175.64,106.6]
[1754666885051,15.37089803,175.65,175.6,4.0808313]
[1754666885052,3.31,175.62,175.61,106.6]
[1754666885852,3.31,175.62,175.56,4.0808313]
[1754666886054,3.31,175.62,175.57,106.6]
[1754666886754,5.6938,175.61,175.57,106.6]
[1754666887054,3.11,175.6,175.57,106.6]
[1754666887353,8.8043,175.6,175.57,106.6]
[1754666887549,3.11,175.59,175.57,106.6]
[1754666888147,3.11,175.61,175.57,106.6]
[1754666889352,3.11,175.63,175.57,106.6]
[1754666889650,5.6936,175.62,175.57,112.2949]
[1754666889846,3.11,175.6,175.57,112.2949]
[1754666890049,3.11,175.59,175.57,106.6]
[1754666890651,3.11,175.59,175.57,112.295]
[1754666891550,4.0808313,175.62,175.57,106.6]
[1754666891855,3.11,175.6,175.58,5.6947]
[1754666892356,3.11,175.6,175.58,4.0808313]
[1754666892563,3.11,175.6,175.59,5.6944]
[1754666893853,6.36839803,175.65,175.57,106.6]
[1754666894157,3.11,175.66,175.62,4.0808313]
[1754666894349,3.11,175.66,175.63,106.6]
[1754666894961,6.36839803,175.67,175.63,112.2931]
[1754666894962,3.11,175.64,175.63,112.2931]
[1754666895163,3.11,175.64,175.63,106.6]
[1754666895164,9.95980572,175.64,175.63,106.6]
[1754666895551,9.95980572,175.64,175.6,106.6]
[1754666895756,3.11,175.62,175.6,106.6]
[1754666896061,9.95980572,175.61,175.6,106.6]
[1754666896659,7.03836706,175.61,175.6,106.6]
[1754666897256,10.22629231,175.61,175.6,106.6]
[1754666897452,15.92009231,175.61,175.6,106.6]
[1754666897658,8.8038,175.61,175.6,106.6]
[1754666897863,15.91984268,175.61,175.6,106.6]
[1754666898458,15.87427989,175.61,175.6,106.6]
[1754666898658,3.11,175.58,175.57,106.6]
[1754666898864,10.18047989,175.58,175.57,112.2951]
[1754666899071,7.26010704,175.58,175.57,106.6]
[1754666901267,10.18047989,175.58,175.57,106.6]
[1754666901659,7.26010704,175.58,175.57,106.6]
[1754666902062,15.87517989,175.58,175.57,106.6]
[1754666902862,7.07047989,175.58,175.57,106.6]
[1754666903068,4.15010704,175.58,175.57,106.6]
[1754666903263,4.15010704,175.58,175.57,112.2947]
[1754666904164,7.26010704,175.58,175.57,106.6]
[1754666905768,7.26010704,175.58,175.57,112.2946]
[1754666905966,7.26010704,175.58,175.57,106.6]
[1754666906464,10.18047989,175.58,175.57,106.6]
[1754666906674,4.15010704,175.58,175.57,106.6]
[1754666907567,3.11,175.62,175.57,106.6]
[1754666907871,3.11,175.65,175.59,4.0808313]
[1754666908066,3.11,175.63,175.6,106.58]
[1754666908267,3.11,175.61,175.6,106.58]
[1754666910171,6.02193101,175.61,175.6,106.58]
[1754666910368,8.8036,175.61,175.6,106.58]
[1754666910566,11.71529736,175.61,175.6,102.30814326]
[1754666911172,3.11,175.59,175.58,106.58]
[1754666911670,6.02169736,175.59,175.58,106.58]
[1754666911869,3.11,175.59,175.58,106.58]
[1754666912271,6.02282013,175.59,175.58,106.58]
[1754666912470,3.11,175.59,175.58,106.58]
[1754666912667,6.02282013,175.59,175.58,106.58]
[1754666912876,6.02282013,175.61,175.58,112.2744]
[1754666913071,2.91282013,175.6,175.58,112.2744]
[1754666913272,2.91282013,175.6,175.58,106.58]
[1754666913572,6.02282013,175.6,175.58,106.58]
[1754666913772,3.11,175.6,175.58,106.58]
[1754666914369,2.91282013,175.59,175.58,106.58]
[1754666914569,3.11,175.6,175.58,112.2744]
[1754666914767,3.11,175.6,175.58,106.58]
[1754666914968,2.91282013,175.6,175.58,106.58]
[1754666915168,3.11,175.6,175.58,112.2745]
[1754666915367,2.91282013,175.59,175.58,112.2745]
[1754666916978,6.05282013,175.59,175.58,112.2745]
[1754666917277,3.14,175.61,175.59,5.6942]
[1754666917476,3.14,175.61,175.6,106.56]
[1754666917672,2.92283825,175.61,175.6,112.2539]
[1754666918579,2.92283825,175.61,175.6,106.56]
[1754666918976,6.06283825,175.61,175.6,106.56]
[1754666919477,6.06451248,175.61,175.6,106.56]
[1754666919678,10.08029655,175.61,175.6,106.56]
[1754666920184,10.08024536,175.61,175.6,106.56]
[1754666920977,6.94125254,175.61,175.6,106.56]
[1754666921375,6.94125254,175.61,175.6,112.2539]
[1754666921574,3.14,175.63,175.6,106.56]
[1754666921779,2.92703849,175.62,175.6,106.56]
[1754666921978,3.14,175.65,175.63,5.6928]
[1754666922279,6.36839803,175.67,175.64,102.26925363]
[1754666922578,6.36839803,175.68,175.65,4.0808313]
[1754666922773,3.14,175.67,175.65,4.0808313]
[1754666925785,6.36839803,175.69,175.65,4.0808313]
[1754666926078,6.36839803,175.69,175.67,4.0808313]
[1754666926270,9.50839803,175.69,175.68,112.2113]
[1754666926477,9.50839803,175.71,175.68,106.52]
[1754666926681,9.50839803,175.71,175.7,4.0808313]
[1754666926877,6.36839803,175.71,175.7,4.0808313]
[1754666927078,9.50839803,175.71,175.7,4.0808313]
[1754666927276,3.14,175.7,175.68,4.0808313]
[1754666927479,9.50839803,175.7,175.69,106.5]
[1754666928079,3.14,175.7,175.69,106.5]
[1754666928280,9.50839803,175.7,175.69,106.5]
[1754666928579,3.14,175.7,175.69,106.5]
[1754666931779,3.14,175.71,175.69,106.5]
[1754666932084,3.14,175.7,175.69,102.23022228]
[1754666933682,10.20095672,175.7,175.69,102.23022228]
[1754666933879,16.56935475,175.7,175.69,102.23022228]
[1754666934376,22.26005475,175.7,175.69,102.23022228]
[1754666934776,16.56935475,175.7,175.69,102.23022228]
[1754666935887,3.14,175.69,175.65,110.5408313]
[1754666936083,3.14,175.66,175.65,110.5408313]
[1754666936381,10.20095672,175.66,175.65,106.46]
[1754666936578,14.96940568,175.66,175.65,106.46]
[1754666936776,15.89295672,175.66,175.65,103.988]
[1754666936980,15.89295672,175.66,175.61,110.5408313]
[1754666937172,11.82911228,175.65,175.61,110.5408313]
[1754666937380,3.14,175.63,175.61,110.5408313]
[1754666937575,10.20095672,175.62,175.61,106.46]
[1754666939984,7.06095672,175.62,175.61,106.46]
[1754666940685,10.20095672,175.62,175.61,106.46]
[1754666941784,7.06095672,175.62,175.61,106.46]
[1754666941978,7.06095672,175.62,175.61,110.5408313]
[1754666942384,7.06095672,175.62,175.61,116.2344313]
[1754666943089,3.14,175.64,175.63,5.693]
[1754666943387,4.76815556,175.68,175.63,12.9208313]
[1754666943585,4.76815556,175.71,175.67,4.0808313]
[1754666943779,4.76815556,175.71,175.68,106.46]
[1754666944379,4.76815556,175.71,175.69,5.6908]
[1754666944579,4.76815556,175.71,175.68,106.46]
[1754666945080,4.76815556,175.71,175.68,112.1511]
[1754666945281,3.14,175.7,175.68,112.1511]
[1754666946387,3.14,175.7,175.68,106.46]
[1754666947079,3.14,175.7,175.68,112.1513]
[1754666947286,3.14,175.7,175.68,106.46]
[1754666947485,4.76815556,175.69,175.68,106.46]
[1754666947685,7.86815556,175.69,175.68,106.46]
[1754666949774,3.1,175.69,175.68,106.46]
[1754666950289,8.791,175.69,175.68,106.46]
[1754666950482,3.1,175.68,175.65,106.42]
[1754666950682,10.45364041,175.67,175.65,106.42]
[1754666950888,3.1,175.66,175.65,106.42]
[1754666951495,7.86194041,175.66,175.65,106.42]
[1754666952588,3.1,175.66,175.65,110.5008313]
[1754666952783,3.1,175.66,175.65,106.42]
[1754666953791,4.79959176,175.67,175.65,106.42]
[1754666954591,4.79959176,175.67,175.65,112.1123]
[1754666955182,6.91786312,175.66,175.65,112.1123]
[1754666955792,6.91786312,175.66,175.65,106.42]
[1754666957492,11.67980353,175.66,175.65,106.42]
[1754666957691,6.91786312,175.66,175.65,106.42]
[1754666958494,3.96617336,175.66,175.65,106.42]
[1754666958795,6.92449322,175.66,175.65,106.42]
[1754666961604,13.29289125,175.66,175.65,106.42]
[1754666962600,6.92449322,175.66,175.65,106.42]
[1754666962807,13.29289125,175.66,175.63,106.4]
[1754666963002,4.77038574,175.64,175.63,106.4]
[1754666963203,11.69487896,175.64,175.63,106.4]
[1754666964605,11.72846159,175.64,175.63,106.4]
[1754666965008,11.72846159,175.64,175.63,112.093]
[1754666965406,6.95807585,175.64,175.63,112.093]
[1754666967709,4.77038574,175.66,175.64,5.6926]
[1754666968004,6.95297497,175.65,175.64,9.7734313]
[1754666968210,11.72336071,175.65,175.64,9.7734313]
[1754666968406,6.95297497,175.65,175.64,9.7734313]
[1754666970611,4.80803709,175.67,175.65,5.6923]
[1754666970811,4.80803709,175.67,175.66,106.38]
[1754666971012,11.76156559,175.67,175.66,106.38]
[1754666971212,11.76156559,175.67,175.66,110.4608313]
[1754666972917,13.35957788,175.67,175.66,106.38]
[1754666973516,19.05127788,175.67,175.66,106.38]
[1754666974719,6.99117985,175.67,175.66,106.36]
[1754666975121,13.35957788,175.67,175.66,106.36]
[1754666975819,19.05127788,175.67,175.66,106.36]
[1754666976216,6.99117985,175.67,175.66,102.0892417]
[1754666976412,13.34970668,175.67,175.66,102.0892417]
[1754666976615,6.99133092,175.67,175.66,102.0892417]
[1754666976816,8.68629257,175.67,175.66,102.0892417]
[1754666977121,15.04478874,175.67,175.66,102.0892417]
[1754666977319,8.68629257,175.67,175.63,106.36]
[1754666977519,4.76906464,175.64,175.63,112.053]
[1754666977712,7.72600586,175.64,175.63,112.053]
[1754666977912,11.90881145,175.64,175.63,112.053]
[1754666978718,11.90881145,175.64,175.63,106.36]
[1754666978922,7.72600586,175.64,175.63,106.36]
[1754666979717,7.72589131,175.64,175.63,106.36]
[1754666980708,2.95682667,175.64,175.63,106.36]
[1754666981115,9.31557952,175.64,175.63,106.36]
[1754666981319,15.00827952,175.64,175.63,106.36]
[1754666981517,2.95682667,175.64,175.62,0.04190424]
[1754666981720,9.31428802,175.63,175.62,0.04190424]
[1754666982023,18.30728802,175.63,175.62,0.04190424]
[1754666982227,11.94982667,175.63,175.62,0.04190424]
[1754666983420,11.94982667,175.63,175.62,4.24e-06]
[1754666983617,3.3,175.57,175.56,106.34]
[1754666983827,7.71971287,175.57,175.56,106.34]
[1754666984027,11.01971287,175.57,175.56,106.34]
[1754666984319,16.71461287,175.57,175.56,106.34]
[1754666984521,11.01971287,175.57,175.56,106.34]
[1754666984723,11.01971287,175.57,175.52,3.12]
[1754666984724,3.3,175.56,175.52,3.12]
[1754666984920,3.3,175.56,175.51,106.34]
[1754666984921,2.95434644,175.55,175.51,106.34]
[1754666985127,6.25434644,175.54,175.51,109.46]
[1754666985324,6.25434644,175.53,175.52,8.8164]
[1754666985628,3.3,175.53,175.52,8.8164]
[1754666985822,6.24134291,175.53,175.52,8.8164]
[1754666986327,6.24134291,175.53,175.51,106.34]
[1754666986524,6.24134291,175.52,175.51,106.34]
[1754666986729,6.24134291,175.52,175.51,109.46]
[1754666986730,3.3,175.52,175.51,109.46]
[1754666986931,6.24134291,175.52,175.51,115.1569]
[1754666987122,6.24134291,175.52,175.51,109.46]
[1754666987322,3.3,175.52,175.51,109.46]
[1754666987528,2.94134291,175.52,175.51,115.1569]
[1754666987732,2.94134291,175.53,175.52,3.12]
[1754666988226,6.24134291,175.53,175.52,3.12]
[1754666988427,3.3,175.53,175.52,3.12]
[1754666989430,0.03872329,175.54,175.52,3.12]
[1754666989431,2.9800662,175.54,175.52,3.12]
[1754666989634,3.33872329,175.54,175.52,3.12]
[1754666990026,3.33872329,175.54,175.53,3.12]
[1754666990228,0.03872329,175.54,175.53,3.12]
[1754666991834,0.03872329,175.54,175.53,8.8162]
[1754666992135,0.03872329,175.54,175.53,3.12]
[1754666993539,0.03872329,175.54,175.53,8.8162]
[1754666994024,0.03872329,175.54,175.53,12.8970313]
[1754666995538,3.3,175.53,175.51,109.48]
[1754666995736,3.3,175.53,175.51,106.36]
[1754666997033,5.6963,175.53,175.51,106.36]
[1754666997236,3.3,175.52,175.51,106.36]
[1754666998338,2.97319228,175.54,175.48,4.0808313]
[1754666998531,3.3,175.52,175.49,106.36]
[1754666998729,2.93446899,175.52,175.49,106.36]
[1754666998934,6.23446899,175.51,175.46,3.12]
[1754666999130,3.3,175.49,175.45,109.48]
[1754666999335,3.3,175.49,175.45,106.36]
[1754666999537,3.3,175.47,175.45,109.48]
[1754666999732,2.93446899,175.47,175.45,109.48]
[1754666999935,3.3,175.46,175.45,109.48]
[1754667000246,3.3,175.46,175.45,106.36]
[1754667000435,3.3,175.46,175.42,106.34]
[1754667000742,7.01530029,175.47,175.42,106.34]
[1754667000941,2.93446899,175.47,175.44,3.12]
[1754667001137,0.03584948,175.46,175.45,3.12]
[1754667002340,3.3,175.45,175.36,5.0]
[1754667002638,3.3,175.42,175.38,3.12]
[1754667002845,3.3,175.41,175.38,3.12]
[1754667003030,3.34249699,175.42,175.37,110.4408313]
[1754667003236,3.3,175.41,175.37,109.48]
[1754667003436,3.3,175.41,175.37,106.36]
[1754667004241,3.3,175.41,175.35,492.3]
[1754667004442,3.3,175.38,175.35,492.3]
[1754667005141,3.33957796,175.38,175.35,492.3]
[1754667005741,3.33957796,175.38,175.35,498.0019]
[1754667006037,0.03957796,175.38,175.32,4.0808313]
[1754667006344,3.28,175.37,175.35,5.7021]
[1754667007548,0.03957796,175.38,175.36,106.38]
[1754667007847,0.03957796,175.38,175.37,3.14]
[1754667008147,3.28,175.44,175.37,3.14]
[1754667008648,3.28,175.43,175.41,3.1]
[1754667008846,2.90356835,175.49,175.42,110.4608313]
[1754667009043,3.28,175.48,175.45,3.1]
[1754667009244,3.28,175.48,175.44,4.0808313]
[1754667009245,3.28,175.48,175.47,3.1]
[1754667010753,3.28,175.48,175.46,106.38]
[1754667011045,3.28,175.48,175.46,115.1785]
[1754667011242,3.28,175.5,175.47,3.1]
[1754667011542,3.28,175.54,175.49,3.1]
[1754667011936,5.6961,175.54,175.49,3.1]
[1754667012140,3.28,175.54,175.5,106.4]
[1754667012343,3.28,175.54,175.53,3.1]
[1754667012546,2.90442194,175.59,175.53,3.1]
[1754667012744,3.28,175.57,175.55,3.1]
[1754667013051,4.75921077,175.61,175.58,3.1]
[1754667013052,3.28,175.59,175.58,3.1]
[1754667013348,3.28,175.61,175.57,6.66391204]
[1754667013538,3.28,175.62,175.59,6.66391204]
[1754667013740,3.28,175.66,175.59,6.66391204]
[1754667014143,3.28,175.65,175.58,3.1]
[1754667014351,3.28,175.62,175.57,6.66391204]
[1754667014549,3.28,175.64,175.57,6.66391204]
[1754667014847,5.6939,175.61,175.56,106.4]
[1754667015147,3.28,175.6,175.56,109.5]
[1754667015350,3.28,175.6,175.56,106.4]
[1754667015649,3.28,175.59,175.56,106.4]
[1754667015846,6.18144051,175.59,175.56,106.4]
[1754667016145,3.28,175.62,175.58,3.1]
[1754667016343,3.28,175.61,175.59,9.76391204]
[1754667016951,3.28,175.6,175.59,9.76391204]
[1754667017449,3.28,175.6,175.57,9.76391204]
[1754667017650,3.28,175.6,175.58,3.1]
[1754667018153,3.28,175.64,175.56,113.06391204]
[1754667018556,11.42312281,175.65,175.56,113.06391204]
[1754667018557,3.28,175.59,175.57,3.1]
[1754667018756,3.28,175.64,175.56,113.06391204]
[1754667018954,5.694,175.6,175.56,113.06391204]
[1754667019153,3.28,175.59,175.57,3.1]
[1754667019749,6.18418227,175.59,175.57,3.1]
[1754667020062,0.0381103,175.62,175.59,3.1]
[1754667020352,3.28,175.61,175.6,106.34]
[1754667022454,6.18575535,175.61,175.6,106.34]
[1754667022752,11.87935535,175.61,175.6,106.34]
[1754667022958,3.28,175.6,175.56,112.98391204]
[1754667023262,3.28,175.6,175.57,3.09]
[1754667023561,3.28,175.59,175.57,3.09]
[1754667024351,3.28,175.59,175.58,3.09]
[1754667024657,2.90575535,175.6,175.57,3.09]
[1754667024957,3.28,175.58,175.57,3.09]
[1754667025160,3.28,175.61,175.57,3.09]
[1754667025352,3.28,175.58,175.56,112.98391204]
[1754667025551,2.94643767,175.62,175.56,116.07391204]
[1754667025753,3.28,175.61,175.56,106.32]
[1754667026157,2.90832737,175.6,175.56,106.32]
[1754667026356,6.18832737,175.6,175.56,106.32]
[1754667026561,5.6949,175.57,175.56,106.32]
[1754667026758,8.9749,175.57,175.56,106.32]
[1754667027063,8.60322737,175.57,175.56,0.03650347]
[1754667027361,5.73638382,175.58,175.56,0.03650347]
[1754667027560,3.32168382,175.58,175.56,3.12650347]
[1754667027761,3.28,175.57,175.56,0.03650347]
[1754667028464,6.18629392,175.57,175.56,0.03650347]
[1754667028860,3.28,175.57,175.56,0.03650347]
[1754667029659,0.04168382,175.58,175.56,3.12650347]
[1754667029859,0.04168382,175.58,175.57,116.05391204]
[1754667030365,2.90629392,175.63,175.58,3.09]
[1754667030568,2.90629392,175.64,175.63,3.09]
[1754667030766,3.28,175.64,175.61,106.3]
[1754667031167,5.693,175.63,175.61,106.3]
[1754667031362,3.28,175.62,175.61,106.3]
[1754667031963,8.9733,175.62,175.61,106.3]
[1754667032370,11.87959392,175.62,175.61,106.3]
[1754667032870,6.18629392,175.62,175.61,106.3]
[1754667033368,3.28,175.62,175.61,109.39]
[1754667033764,3.28,175.62,175.61,106.3]
[1754667034165,8.9733,175.62,175.61,106.3]
[1754667034368,3.28,175.61,175.6,0.03594733]
[1754667034566,8.9736,175.61,175.6,0.03594733]
[1754667034768,6.18629392,175.61,175.58,106.28]
[1754667034970,3.28,175.61,175.58,106.28]
[1754667035163,5.6949,175.58,175.55,109.37]
[1754667035359,3.28,175.61,175.55,109.37]
[1754667035562,3.28,175.61,175.55,106.28]
[1754667035865,3.28,175.6,175.55,106.28]
[1754667036369,3.23,175.56,175.55,106.28]
[1754667036568,6.13629392,175.56,175.55,106.28]
[1754667036769,6.13111104,175.56,175.55,106.28]
[1754667036969,3.23,175.56,175.55,106.28]
[1754667037566,3.23,175.55,175.49,389.72391204]
[1754667037772,6.66391204,175.54,175.46,3.09]
[1754667037965,5.6968,175.52,175.47,109.37]
[1754667038270,3.23,175.5,175.48,3.09]
[1754667039069,3.23,175.49,175.47,106.28]
[1754667039365,5.6971,175.51,175.48,3.09]
[1754667039573,3.23,175.5,175.48,3.09]
[1754667039770,3.23,175.5,175.48,109.39]
[1754667040274,3.23,175.5,175.48,3.09]
[1754667040572,3.23,175.52,175.49,3.09]
[1754667040870,3.23,175.51,175.49,3.09]
[1754667041068,5.6968,175.52,175.49,3.09]
[1754667041272,3.23,175.5,175.49,3.09]
[1754667041473,3.23,175.51,175.49,3.09]
[1754667041776,3.23,175.5,175.48,106.3]
[1754667041977,3.23,175.5,175.48,109.39]
[1754667043474,11.42312281,175.56,175.48,106.3]
[1754667043775,5.6972,175.5,175.48,106.3]
[1754667044071,3.23,175.49,175.48,106.3]
[1754667044474,8.9275,175.49,175.48,106.3]
[1754667044869,11.82420579,175.49,175.48,106.3]
[1754667045066,3.23,175.49,175.46,3.09]
[1754667045273,3.23,175.49,175.47,3.09]
[1754667045470,5.6968,175.52,175.46,9.75391204]
[1754667045674,3.23,175.52,175.47,3.09]
[1754667046071,6.12673731,175.55,175.5,6.66391204]
[1754667046279,3.23,175.54,175.52,3.09]
[1754667046777,8.926,175.54,175.52,3.09]
[1754667046973,3.23,175.57,175.52,6.66391204]
[1754667047276,3.23,175.54,175.52,6.66391204]
[1754667047477,3.23,175.54,175.52,9.75391204]
[1754667047979,3.23,175.54,175.45,241.66391204]
[1754667047980,3.23,175.53,175.5,6.66391204]
[1754667048165,3.23,175.52,175.5,106.3]
[1754667048371,5.6956,175.55,175.51,3.09]
[1754667048678,3.23,175.56,175.51,3.09]
[1754667048972,3.23,175.56,175.5,106.3]
[1754667049482,3.23,175.49,175.48,106.3]
[1754667049875,3.23,175.49,175.48,109.39]
[1754667050271,3.23,175.54,175.49,3.09]
[1754667050476,3.23,175.54,175.5,3.09]
[1754667050674,3.23,175.52,175.5,3.09]
[1754667050977,3.23,175.51,175.48,106.3]
[1754667051178,3.23,175.51,175.49,3.09]
[1754667051575,2.90156855,175.51,175.49,3.09]
[1754667051776,5.6969,175.51,175.48,106.3]
[1754667051981,3.23,175.49,175.48,106.3]
[1754667052272,3.23,175.49,175.48,109.39]
[1754667052680,3.23,175.49,175.48,106.3]
[1754667053571,6.13156855,175.49,175.48,106.3]
[1754667053781,8.9275,175.49,175.48,106.3]
[1754667054079,3.23,175.47,175.46,106.3]
[1754667054475,6.13156855,175.47,175.46,106.3]
[1754667055074,11.82976855,175.47,175.46,106.3]
[1754667056577,2.90156855,175.47,175.46,106.3]
[1754667056783,2.90156855,175.49,175.47,3.09]
[1754667056980,6.13156855,175.48,175.47,3.09]
[1754667057178,3.23,175.48,175.47,3.09]
[1754667057481,6.13156855,175.48,175.47,3.09]
[1754667057682,3.23,175.48,175.46,106.3]
[1754667057881,6.13156855,175.48,175.46,106.3]
[1754667058073,6.13156855,175.48,175.46,109.39]
[1754667058383,2.90156855,175.48,175.47,3.09]
[1754667058575,2.90156855,175.49,175.46,106.3]
[1754667058775,2.90156855,175.49,175.48,3.09]
[1754667058977,2.90156855,175.5,175.47,3.09]
[1754667059182,2.90156855,175.49,175.48,3.09]
[1754667059881,4.75921077,175.52,175.46,106.3]
[1754667059882,3.23,175.5,175.46,106.3]
[1754667060082,6.13156855,175.5,175.48,3.09]
[1754667060281,3.23,175.5,175.48,3.09]
[1754667060483,6.13156855,175.5,175.48,3.09]
[1754667060779,2.90156855,175.51,175.48,3.09]
[1754667060985,2.90156855,175.52,175.48,3.09]
[1754667061186,2.90156855,175.51,175.5,3.09]
[1754667061384,2.91399236,175.53,175.51,3.09]
[1754667061686,9.44651826,175.62,175.53,3.09]
[1754667061687,4.75921077,175.62,175.53,3.09]
[1754667061983,3.23,175.63,175.61,3.09]
[1754667062179,4.75921077,175.64,175.6,6.66391204]
[1754667062180,7.98921077,175.64,175.62,106.32]
[1754667062377,3.23,175.64,175.62,109.41]
[1754667062578,3.23,175.63,175.62,109.41]
[1754667062783,3.23,175.63,175.62,106.32]
[1754667064478,3.23,175.62,175.56,9.75391204]
[1754667064784,4.75921077,175.62,175.57,106.28]
[1754667064978,3.23,175.6,175.57,106.28]
[1754667065182,3.23,175.59,175.57,109.37]
[1754667065580,3.23,175.58,175.57,109.37]
[1754667066576,3.23,175.58,175.57,106.28]
[1754667066779,8.9248,175.58,175.57,106.28]
[1754667068780,3.21,175.6,175.57,109.33]
[1754667069083,3.21,175.6,175.57,106.28]
[1754667069084,7.96921077,175.6,175.57,106.28]
[1754667069284,3.21,175.59,175.57,106.28]
[1754667070482,8.9043,175.59,175.57,106.28]
[1754667070782,3.21,175.58,175.57,106.28]
[1754667071590,7.96921077,175.6,175.58,3.05]
[1754667071891,3.21,175.6,175.59,3.05]
[1754667072790,3.21,175.6,175.57,106.28]
[1754667072984,4.75921077,175.61,175.57,106.28]
[1754667072985,4.75921077,175.61,175.57,109.33]
[1754667073184,3.21,175.58,175.57,109.33]
[1754667073378,3.21,175.59,175.57,109.33]
[1754667073576,3.21,175.59,175.55,3.05]
[1754667073777,6.13912247,175.59,175.56,106.26]
[1754667074082,3.21,175.58,175.56,106.26]
[1754667074486,6.13912247,175.59,175.57,3.05]
[1754667074686,3.21,175.58,175.56,109.31]
[1754667074988,3.21,175.57,175.56,106.26]
[1754667076191,6.1340697,175.57,175.56,106.26]
[1754667076389,3.21,175.57,175.56,106.26]
[1754667076689,2.9240697,175.58,175.56,106.26]
[1754667076690,2.9240697,175.58,175.57,3.05]
[1754667076889,2.9240697,175.6,175.56,111.9553]
[1754667077185,2.9240697,175.59,175.58,3.05]
[1754667077589,6.1340697,175.6,175.59,3.05]
[1754667077792,3.21,175.6,175.59,3.05]
[1754667077982,6.1340697,175.6,175.59,3.05]
[1754667078184,3.21,175.6,175.59,109.31]
[1754667078381,6.1340697,175.6,175.59,109.31]
[1754667078581,2.9240697,175.6,175.59,109.31]
[1754667078785,2.9240697,175.61,175.6,3.05]
[1754667078983,6.13829402,175.62,175.6,3.05]
[1754667079382,3.21,175.61,175.6,3.05]
[1754667079586,3.21,175.61,175.59,106.26]
[1754667079991,3.21,175.6,175.59,106.26]
[1754667081090,4.75921077,175.62,175.59,106.26]
[1754667081295,3.21,175.6,175.59,106.26]
[1754667082497,6.13864039,175.6,175.59,106.26]
[1754667082798,11.83280362,175.6,175.59,106.26]
[1754667082987,2.92880362,175.6,175.54,3.05]
[1754667083188,2.92880362,175.59,175.55,106.26]
[1754667083495,3.21,175.57,175.55,106.26]
[1754667083684,3.21,175.56,175.55,106.26]
[1754667083890,3.21,175.56,175.55,109.31]
[1754667084788,3.21,175.56,175.55,106.26]
[1754667085497,6.13880362,175.57,175.55,109.31]
[1754667086196,2.92880362,175.56,175.55,109.31]
[1754667086894,6.13880362,175.56,175.55,106.26]
[1754667087102,11.83410362,175.56,175.55,106.26]
[1754667087491,3.21,175.55,175.5,3.05]
[1754667087696,3.21,175.53,175.51,106.26]
[1754667088100,3.21,175.52,175.51,106.26]
[1754667090197,3.21,175.51,175.5,111.9572]
[1754667090394,3.21,175.51,175.5,106.26]
[1754667091703,3.21,175.51,175.5,111.9572]
[1754667091905,3.21,175.51,175.5,109.31]
[1754667092205,3.21,175.51,175.5,106.26]
[1754667092402,3.21,175.51,175.46,235.0]
[1754667092403,3.21,175.51,175.46,3.05]
[1754667092604,6.66391204,175.54,175.44,385.83]
[1754667092605,3.21,175.49,175.44,385.83]